bitfinex-derivatives/quotes_BTCF0:USTF0_20250926
["timestamp","ask_amount","ask_price","bid_price","bid_amount"]
[1758921171446,0.17648523,109300.0,109290.0,0.1282195]
[1758921171641,1.00980523,109300.0,109290.0,0.1282195]
[1758921177152,1.03580735,109300.0,109290.0,0.1282195]
[1758921178548,0.20248735,109300.0,109290.0,0.5282195]
[1758921178849,0.03864212,109300.0,109290.0,0.8890195]
[1758921179153,0.03864974,109300.0,109290.0,0.8890195]
[1758921181956,0.13006874,109300.0,109290.0,0.8890195]
[1758921182352,0.03864974,109300.0,109290.0,0.8890195]
[1758921189657,0.003,109300.0,109290.0,0.8890195]
[1758921191561,0.003,109300.0,109290.0,0.4890195]
[1758921192060,0.003,109300.0,109290.0,1.3220995]
[1758921192761,0.003,109300.0,109290.0,1.3220595]
[1758921193062,0.08172948,109310.0,109300.0,0.1280189]
[1758921193262,0.03577338,109310.0,109300.0,0.4888189]
[1758921194266,0.03877338,109310.0,109300.0,0.4888189]
[1758921194853,0.13018398,109310.0,109300.0,0.4888189]
[1758921195760,0.20249282,109310.0,109300.0,0.4888189]
[1758921197063,0.17635944,109310.0,109300.0,0.4888189]
[1758921198868,0.01264,109310.0,109300.0,0.4888189]
[1758921204670,0.1040506,109310.0,109300.0,0.4888189]
[1758921214078,0.13018114,109310.0,109300.0,0.4888189]
[1758921215679,0.1040506,109310.0,109300.0,0.4888189]
[1758921215875,0.13018336,109310.0,109300.0,0.4888189]
[1758921223578,0.1040506,109310.0,109300.0,0.4888189]
[1758921223780,0.13026846,109310.0,109300.0,0.4888189]
[1758921225078,0.13026846,109310.0,109300.0,0.1280189]
[1758921240188,0.02921786,109310.0,109300.0,0.8888189]
[1758921240388,0.4521965,109330.0,109320.0,0.03689]
[1758921240590,0.0913958,109330.0,109320.0,0.1282942]
[1758921241184,0.4755134,109340.0,109330.0,0.1282858]
[1758921241990,0.4521934,109340.0,109330.0,0.1282858]
[1758921242188,0.4521934,109340.0,109330.0,0.14924102]
[1758921242491,0.4521934,109340.0,109330.0,0.15858606]
[1758921242690,0.4561934,109340.0,109330.0,0.15858606]
[1758921242887,0.4561934,109340.0,109330.0,0.13763084]
[1758921243196,0.4795134,109340.0,109330.0,0.13763084]
[1758921243391,0.4795134,109340.0,109330.0,0.15903809]
[1758921244291,0.4765134,109340.0,109330.0,0.15903809]
[1758921244995,0.1147134,109340.0,109330.0,0.15903809]
[1758921245197,0.1157134,109340.0,109330.0,0.15903809]
[1758921246098,0.1157065,109340.0,109330.0,0.15903809]
[1758921246298,0.001,109340.0,109330.0,0.51983809]
[1758921246895,0.001,109340.0,109330.0,1.35207809]
[1758921247090,0.001,109340.0,109330.0,1.75207809]
[1758921247698,0.3608,109350.0,109340.0,0.0913866]
[1758921248000,0.3608,109350.0,109340.0,0.1263166]
[1758921249199,0.3648,109350.0,109340.0,0.1263166]
[1758921249399,0.4561783,109350.0,109340.0,0.9584766]
[1758921250200,0.3648,109350.0,109340.0,0.9584766]
[1758921250596,0.3648,109350.0,109340.0,0.9584366]
[1758921250800,0.004,109350.0,109340.0,0.9584366]
[1758921251501,0.004,109350.0,109340.0,0.1263166]
[1758921252000,0.004,109350.0,109340.0,1.3583966]
[1758921252191,0.4521674,109370.0,109340.0,1.7191966]
[1758921252392,0.4521674,109370.0,109360.0,0.1263]
[1758921252893,0.4750774,109370.0,109360.0,0.1263]
[1758921253298,0.5667393,109380.0,109370.0,0.03493]
[1758921253600,0.54802606,109380.0,109370.0,0.03493]
[1758921254895,0.55502606,109380.0,109370.0,0.03493]
[1758921255297,0.55502606,109380.0,109370.0,0.14776586]
[1758921256799,0.1212693,109380.0,109370.0,0.14776586]
[1758921257001,0.007,109380.0,109370.0,0.50856586]
[1758921257600,0.007,109380.0,109370.0,0.90856586]
[1758921258505,0.3608,109400.0,109390.0,0.1262772]
[1758921258713,0.3608,109400.0,109390.0,0.9581572]
[1758921259401,0.4750471,109410.0,109400.0,0.1262691]
[1758921259706,0.38371,109410.0,109400.0,0.1262691]
[1758921260105,0.02291,109410.0,109400.0,0.1262691]
[1758921260905,0.02291,109410.0,109400.0,0.4870691]
[1758921261108,1.3055979,109420.0,109410.0,0.1262609]
[1758921261302,0.50079965,109420.0,109410.0,0.1262609]
[1758921261510,0.3608,109420.0,109410.0,0.1262609]
[1758921262702,0.3608,109420.0,109410.0,0.9580209]
[1758921263409,0.38371,109420.0,109410.0,0.9580209]
[1758921263609,0.3608,109420.0,109410.0,0.9580209]
[1758921263805,0.007,109420.0,109410.0,0.1262609]
[1758921264011,0.007,109420.0,109410.0,0.9580209]
[1758921264708,0.4750311,109430.0,109420.0,0.1262526]
[1758921265108,0.50075213,109430.0,109420.0,0.1262526]
[1758921267314,0.50175213,109430.0,109420.0,0.1262526]
[1758921268613,0.50175213,109430.0,109420.0,0.14769901]
[1758921270016,0.38752103,109430.0,109420.0,0.54769901]
[1758921270213,0.4651644,109470.0,109450.0,0.0977775]
[1758921270406,0.38650717,109470.0,109460.0,0.1262191]
[1758921270608,0.01308,109480.0,109470.0,0.0912808]
[1758921271111,0.01308,109490.0,109480.0,0.0912724]
[1758921271312,0.01308,109490.0,109480.0,0.47298335]
[1758921271718,0.01308,109490.0,109480.0,1.70670335]
[1758921272322,0.01308,109490.0,109480.0,1.70662335]
[1758921273218,0.01308,109490.0,109480.0,0.87298335]
[1758921273423,0.01708,109490.0,109480.0,1.70738335]
[1758921275524,0.01708,109490.0,109480.0,1.70726335]
[1758921277432,0.01708,109490.0,109480.0,0.87298335]
[1758921277933,0.01708,109490.0,109480.0,1.70682335]
[1758921278135,0.01708,109490.0,109480.0,0.87298335]
[1758921278332,0.01708,109490.0,109480.0,1.70718335]
[1758921278734,0.01708,109490.0,109480.0,0.87298335]
[1758921279036,0.01708,109490.0,109480.0,1.70742335]
[1758921279534,0.01708,109490.0,109480.0,1.30742335]
[1758921280337,0.01005,109500.0,109490.0,0.0912641]
[1758921280533,0.01005,109500.0,109490.0,0.8520641]
[1758921281428,0.01005,109500.0,109490.0,1.6869441]
[1758921281924,0.01005,109500.0,109490.0,1.2869441]
[1758921282537,0.01405,109500.0,109490.0,1.2869441]
[1758921284634,0.01405,109500.0,109490.0,1.2866641]
[1758921285138,0.01405,109500.0,109490.0,1.2867041]
[1758921285438,0.01405,109500.0,109490.0,0.4520641]
[1758921285632,0.01405,109500.0,109490.0,1.2866641]
[1758921286529,0.01405,109500.0,109490.0,0.4520641]
[1758921286724,0.01405,109500.0,109490.0,1.2865841]
[1758921286936,0.01405,109500.0,109490.0,0.4520641]
[1758921287136,0.01405,109500.0,109490.0,1.2864241]
[1758921290143,0.01005,109500.0,109490.0,1.2894241]
[1758921290842,0.01005,109500.0,109490.0,1.2864241]
[1758921292845,0.03171,109500.0,109490.0,1.2861041]
[1758921293646,0.01005,109500.0,109490.0,1.2861041]
[1758921295447,0.03171,109500.0,109490.0,1.2859041]
[1758921296547,0.03171,109500.0,109490.0,0.4520641]
[1758921296747,0.03171,109500.0,109490.0,1.2858641]
[1758921299350,0.05650071,109500.0,109490.0,1.2858641]
[1758921300243,0.14775651,109500.0,109490.0,1.2858641]
[1758921300747,0.05650071,109500.0,109490.0,1.2858641]
[1758921305654,0.05650071,109500.0,109490.0,0.4520641]
[1758921305853,0.05650071,109500.0,109490.0,1.2853841]
[1758921306553,0.14775651,109500.0,109490.0,1.2853841]
[1758921308758,0.05650071,109500.0,109490.0,1.2853841]
[1758921309054,0.14775651,109500.0,109490.0,1.2853841]
[1758921310355,0.14775651,109500.0,109490.0,0.9247841]
[1758921310744,0.14775651,109500.0,109490.0,0.0912641]
[1758921310953,0.03561,109490.0,109480.0,0.091269]
[1758921311152,0.15166481,109490.0,109480.0,0.924909]
[1758921311352,0.46040071,109490.0,109480.0,0.091269]
[1758921311544,0.46040071,109490.0,109480.0,0.924989]
[1758921311747,0.55166481,109490.0,109480.0,0.091269]
[1758921311948,0.55166481,109490.0,109480.0,0.924989]
[1758921312151,0.55166481,109490.0,109480.0,0.925989]
[1758921312554,0.55166481,109490.0,109480.0,0.092269]
[1758921312758,0.55166481,109490.0,109480.0,0.926109]
[1758921313556,0.46040071,109490.0,109480.0,0.926109]
[1758921313759,0.55166481,109490.0,109480.0,0.926109]
[1758921314550,0.91246481,109490.0,109480.0,0.001]
[1758921314752,0.91246481,109490.0,109480.0,0.8348]
[1758921315251,0.91246481,109490.0,109480.0,0.83476]
[1758921315458,0.91246481,109490.0,109480.0,0.001]
[1758921315652,0.92144528,109490.0,109480.0,0.001]
[1758921318253,0.03561,109460.0,109450.0,0.47301088]
[1758921318448,0.03561,109460.0,109450.0,1.21965088]
[1758921318649,0.03561,109460.0,109450.0,1.29332053]
[1758921319452,0.03561,109460.0,109450.0,1.29932053]
[1758921320461,0.03561,109460.0,109450.0,1.30839342]
[1758921321161,0.1269,109460.0,109450.0,1.30839342]
[1758921322960,0.1269,109460.0,109450.0,0.56175342]
[1758921323161,0.1269,109460.0,109450.0,1.37491584]
[1758921323362,0.03561,109460.0,109450.0,1.37491584]
[1758921323663,0.1269007,109460.0,109450.0,1.37491584]
[1758921324357,0.1269007,109460.0,109450.0,0.54083584]
[1758921324662,0.1269007,109460.0,109450.0,1.37487584]
[1758921325455,0.1269007,109460.0,109450.0,0.46716619]
[1758921325658,0.1269007,109460.0,109450.0,1.30120619]
[1758921330560,0.1269004,109460.0,109450.0,1.30120619]
[1758921334071,0.03561,109460.0,109450.0,1.30120619]
[1758921334468,0.03561,109460.0,109450.0,1.36655943]
[1758921335068,0.01303,109460.0,109450.0,1.76655943]
[1758921335465,0.1269003,109460.0,109450.0,0.93251943]
[1758921335668,0.1269003,109460.0,109450.0,1.36719943]
[1758921336070,0.1269003,109460.0,109450.0,1.30184619]
[1758921336576,0.1269003,109460.0,109450.0,1.30192619]
[1758921338473,0.1269003,109460.0,109450.0,1.36727943]
[1758921339180,0.1269003,109460.0,109450.0,0.53251943]
[1758921339379,0.1269003,109460.0,109450.0,1.36707943]
[1758921340181,0.03561,109460.0,109450.0,1.36707943]
[1758921341284,0.03561,109460.0,109450.0,1.30172619]
[1758921341976,0.01303,109460.0,109450.0,1.30172619]
[1758921342182,0.01303,109460.0,109450.0,1.70172619]
[1758921352991,0.01303,109460.0,109450.0,0.86716619]
[1758921353191,0.01303,109460.0,109450.0,1.70080619]
[1758921354091,0.0348,109460.0,109450.0,0.46716619]
[1758921354299,0.0348,109460.0,109450.0,1.30068619]
[1758921355697,0.0348,109460.0,109450.0,0.10636619]
[1758921355698,0.52609,109460.0,109450.0,0.10636619]
[1758921355898,0.52609,109460.0,109450.0,0.93980619]
[1758921358000,0.52609,109460.0,109450.0,0.10636619]
[1758921358199,0.52609,109460.0,109450.0,0.93972619]
[1758921358400,0.52609,109460.0,109450.0,0.0972933]
[1758921358602,0.88689,109460.0,109450.0,0.93955059]
[1758921359100,0.88689,109460.0,109450.0,0.9305333]
[1758921359800,0.88689,109460.0,109450.0,0.0972933]
[1758921361303,0.88689,109460.0,109450.0,0.006]
[1758921364611,0.90571106,109460.0,109450.0,0.006]
[1758921365507,0.98062106,109460.0,109450.0,0.006]
[1758921365900,1.81390106,109460.0,109450.0,0.006]
[1758921367712,0.126715,109430.0,109420.0,0.11276621]
[1758921368014,0.126715,109430.0,109420.0,0.71833024]
[1758921368201,0.0913234,109420.0,109410.0,0.4521271]
[1758921368402,0.1267234,109420.0,109410.0,1.29469864]
[1758921368812,0.1267234,109420.0,109410.0,0.4521271]
[1758921369113,0.1167234,109420.0,109410.0,0.4521271]
[1758921369802,0.1167234,109420.0,109410.0,0.4591271]
[1758921370001,0.0354,109420.0,109410.0,0.4591271]
[1758921370709,0.0354,109420.0,109410.0,0.4571271]
[1758921375607,0.1267233,109420.0,109410.0,0.4571271]
[1758921377714,0.1267233,109420.0,109410.0,0.0963271]
[1758921377914,0.1267233,109420.0,109410.0,0.4571271]
[1758921382315,0.1267233,109420.0,109410.0,0.0963271]
[1758921387118,0.1267233,109420.0,109410.0,0.4571271]
[1758921388416,0.0354,109420.0,109410.0,0.4571271]
[1758921390106,0.1267234,109420.0,109410.0,0.4571271]
[1758921390312,0.1267234,109420.0,109410.0,0.0963271]
[1758921396823,0.0354,109420.0,109410.0,0.4571271]
[1758921397825,0.1267234,109420.0,109410.0,0.4571271]
[1758921401018,0.1267234,109420.0,109410.0,0.3658]
[1758921401224,0.91163251,109420.0,109410.0,0.005]
[1758921401817,0.51163251,109420.0,109410.0,0.005]
[1758921402223,0.1262517,109410.0,109400.0,6.982e-05]
[1758921402424,0.4870517,109410.0,109400.0,0.09140982]
[1758921404728,0.4880517,109410.0,109400.0,0.09140982]
[1758921406734,0.8880517,109410.0,109400.0,0.09140982]
[1758921410228,0.8880517,109410.0,109400.0,6.982e-05]
[1758921410621,0.12626,109400.0,109390.0,0.0913402]
[1758921410934,0.48706,109400.0,109390.0,0.0913402]
[1758921411131,0.48706,109400.0,109390.0,0.0913483]
[1758921411432,0.49614852,109400.0,109390.0,0.0913483]
[1758921411727,0.1252683,109390.0,109380.0,0.091351]
[1758921412133,0.4860683,109390.0,109380.0,0.091351]
[1758921413532,0.5610283,109390.0,109380.0,0.091351]
[1758921414032,0.5610283,109390.0,109380.0,0.092351]
[1758921414430,0.2002283,109390.0,109380.0,0.092351]
[1758921414824,0.2002283,109390.0,109380.0,0.091351]
[1758921415028,0.2012283,109390.0,109380.0,0.091351]
[1758921421832,0.5620283,109390.0,109380.0,0.091351]
[1758921422438,0.1262766,109380.0,109370.0,0.93352292]
[1758921423532,0.1262766,109380.0,109370.0,0.93452292]
[1758921424335,0.1272766,109380.0,109370.0,0.10056292]
[1758921425936,0.01361,109370.0,109360.0,1.19396]
[1758921426137,0.01367982,109370.0,109360.0,1.19396]
[1758921426528,0.10504402,109370.0,109360.0,1.2853326]
[1758921426940,0.12606402,109370.0,109360.0,0.4531726]
[1758921427250,0.12606402,109370.0,109360.0,1.2955919]
[1758921427740,0.12606402,109370.0,109360.0,1.2945919]
[1758921427941,0.12706402,109370.0,109360.0,1.2945919]
[1758921428939,0.12706402,109370.0,109360.0,0.4615119]
[1758921429141,0.12706402,109370.0,109360.0,0.9244526]
[1758921431640,0.12706402,109370.0,109360.0,0.0913726]
[1758921437746,0.12706402,109370.0,109360.0,0.4521726]
[1758921445457,0.03569982,109370.0,109360.0,0.4521726]
[1758921445656,0.12706392,109370.0,109360.0,0.4521726]
[1758921451163,0.20203392,109370.0,109360.0,0.4521726]
[1758921457264,0.20203392,109370.0,109360.0,0.0913726]
[1758921457872,0.20203392,109370.0,109360.0,0.0913724]
[1758921459876,0.21105048,109370.0,109360.0,0.0913724]
[1758921461377,0.20203392,109370.0,109360.0,0.0913724]
[1758921464473,0.21102728,109370.0,109360.0,0.0913724]
[1758921466074,0.20203392,109370.0,109360.0,0.0913724]
[1758921472487,0.11066982,109370.0,109360.0,0.4521724]
[1758921473082,0.20203392,109370.0,109360.0,0.4521724]
[1758921473681,0.11066982,109370.0,109360.0,0.4521724]
[1758921474280,0.11066982,109370.0,109360.0,0.47311218]
[1758921474981,0.08964982,109370.0,109360.0,0.87311218]
[1758921481290,0.01361,109380.0,109360.0,0.87311218]
[1758921481291,0.01361,109380.0,109370.0,0.0913641]
[1758921481482,0.01361,109390.0,109370.0,1.6847241]
[1758921481685,1e-07,109390.0,109380.0,0.8521557]
[1758921481887,0.01285,109410.0,109390.0,0.0913474]
[1758921482090,0.01285,109410.0,109400.0,1.645499]
[1758921483297,0.01285,109410.0,109400.0,2.1369025]
[1758921483491,0.01285,109420.0,109410.0,0.0913307]
[1758921483685,0.01285,109420.0,109410.0,0.4521307]
[1758921484088,0.01285,109420.0,109410.0,0.54352584]
[1758921484695,0.01685,109420.0,109410.0,0.54352584]
[1758921484892,0.01685,109420.0,109410.0,0.55273285]
[1758921486693,0.03956,109420.0,109410.0,0.46133771]
[1758921486891,0.03956,109420.0,109410.0,1.29393771]
[1758921487194,0.1308823,109420.0,109410.0,1.29389771]
[1758921487590,0.1308823,109420.0,109410.0,1.29445771]
[1758921488594,0.1308823,109420.0,109410.0,0.46133771]
[1758921488795,0.1308823,109420.0,109410.0,1.29441771]
[1758921490691,0.03956,109420.0,109410.0,1.29441771]
[1758921491084,0.1308823,109420.0,109410.0,0.46133771]
[1758921491284,0.1308823,109420.0,109410.0,1.29425771]
[1758921491695,0.1308823,109420.0,109410.0,0.46133771]
[1758921491895,0.1308823,109420.0,109410.0,1.29437771]
[1758921492889,0.1308823,109420.0,109410.0,0.4521307]
[1758921493090,0.1260707,109410.0,109400.0,0.0913345]
[1758921493492,0.126079,109400.0,109390.0,0.4521409]
[1758921494698,0.03474,109400.0,109390.0,0.0913409]
[1758921494898,0.03474,109400.0,109390.0,1.2852609]
[1758921495600,0.126079,109400.0,109390.0,1.2852609]
[1758921496499,0.127079,109400.0,109390.0,1.2852609]
[1758921501804,0.03574,109400.0,109390.0,1.2852609]
[1758921503099,0.01362,109400.0,109390.0,1.2852609]
[1758921503804,0.01362,109400.0,109390.0,1.6852609]
[1758921505101,0.01362,109400.0,109390.0,1.706898]
[1758921505400,0.01362,109400.0,109390.0,0.873778]
[1758921505803,0.01362,109400.0,109390.0,1.706538]
[1758921506011,0.03574,109400.0,109390.0,0.873778]
[1758921506209,0.1270791,109400.0,109390.0,1.306498]
[1758921507007,0.1270791,109400.0,109390.0,0.473778]
[1758921507305,0.1270791,109400.0,109390.0,1.306698]
[1758921510304,0.03574,109400.0,109390.0,1.306698]
[1758921510504,0.03574,109400.0,109390.0,1.306418]
[1758921510809,0.01362,109400.0,109390.0,1.306418]
[1758921512109,0.03574,109400.0,109390.0,1.306538]
[1758921512309,0.03574,109400.0,109390.0,0.473778]
[1758921512506,0.03574,109400.0,109390.0,1.306538]
[1758921512705,0.03574,109400.0,109390.0,0.473778]
[1758921513007,0.03574,109400.0,109390.0,1.306498]
[1758921515808,0.01362,109400.0,109390.0,1.306498]
[1758921518413,0.03574,109400.0,109390.0,1.307538]
[1758921519109,0.03574,109400.0,109390.0,0.473778]
[1758921519310,0.01362,109400.0,109390.0,1.307498]
[1758921522014,0.03503,109400.0,109390.0,1.307378]
[1758921522613,0.03503,109400.0,109390.0,0.473778]
[1758921522913,0.03503,109400.0,109390.0,1.307218]
[1758921523816,0.03503,109400.0,109390.0,0.473778]
[1758921524117,0.03503,109400.0,109390.0,1.307378]
[1758921524515,0.03503,109400.0,109390.0,0.473778]
[1758921524715,0.03503,109400.0,109390.0,1.307498]
[1758921525618,0.03503,109400.0,109390.0,0.473778]
[1758921525811,0.1263691,109400.0,109390.0,0.473778]
[1758921526014,0.1263691,109400.0,109390.0,0.112978]
[1758921526215,0.1263691,109400.0,109390.0,0.946658]
[1758921527118,0.1263691,109400.0,109390.0,1.307458]
[1758921528923,0.1263691,109400.0,109390.0,0.473778]
[1758921529124,0.1263691,109400.0,109390.0,1.307378]
[1758921530520,0.1263691,109400.0,109390.0,0.473778]
[1758921530824,0.1263691,109400.0,109390.0,1.307258]
[1758921531118,0.1263691,109400.0,109390.0,0.473778]
[1758921531420,0.1263691,109400.0,109390.0,1.307218]
[1758921532622,0.03503,109400.0,109390.0,1.307218]
[1758921533818,0.1263691,109400.0,109390.0,1.307218]
[1758921534017,0.1263691,109400.0,109390.0,0.473778]
[1758921534225,0.1263691,109400.0,109390.0,1.307178]
[1758921534618,0.1263691,109400.0,109390.0,0.946378]
[1758921536723,0.1263691,109400.0,109390.0,0.0913409]
[1758921536924,0.5263691,109400.0,109390.0,0.9243809]
[1758921539817,0.43503,109400.0,109390.0,1.2851809]
[1758921540416,0.43503,109400.0,109390.0,1.2849809]
[1758921540720,0.5263691,109400.0,109390.0,1.2849809]
[1758921544729,0.43503,109400.0,109390.0,1.2847009]
[1758921545224,0.5263691,109400.0,109390.0,0.0913409]
[1758921545833,0.1261175,109390.0,109380.0,0.46121559]
[1758921546033,0.1261175,109390.0,109380.0,1.29437559]
[1758921546235,0.1261175,109390.0,109380.0,0.46121559]
[1758921546534,0.1261175,109390.0,109380.0,1.2855492]
[1758921546832,0.1261175,109390.0,109380.0,1.29485909]
[1758921547133,0.1261175,109390.0,109380.0,1.2865492]
[1758921548538,0.1261174,109390.0,109380.0,1.2865492]
[1758921550530,0.03477,109390.0,109380.0,1.2865492]
[1758921551236,0.03477,109390.0,109380.0,1.29554197]
[1758921551540,0.1261174,109390.0,109380.0,1.29554197]
[1758921552838,0.03477,109390.0,109380.0,1.29554197]
[1758921553338,0.1261174,109390.0,109380.0,1.29554197]
[1758921553939,0.03477,109390.0,109380.0,1.29554197]
[1758921554635,0.01336,109390.0,109380.0,1.69554197]
[1758921556940,0.01336,109390.0,109380.0,1.77649713]
[1758921557946,0.01262,109400.0,109390.0,0.0913474]
[1758921558241,0.01262,109400.0,109390.0,0.47380049]
[1758921558434,0.01262,109400.0,109390.0,0.87380049]
[1758921559545,0.01262,109410.0,109400.0,0.091339]
[1758921559736,0.01262,109410.0,109400.0,1.284939]
[1758921559936,0.01262,109410.0,109400.0,1.36589416]
[1758921560141,0.01262,109410.0,109400.0,1.45729766]
[1758921560841,0.01462,109410.0,109400.0,0.62449766]
[1758921561039,0.01462,109410.0,109400.0,1.85745766]
[1758921561238,0.01285,109420.0,109410.0,0.0913306]
[1758921561446,0.01285,109420.0,109410.0,0.4521306]
[1758921562148,0.01285,109420.0,109410.0,1.2849706]
[1758921562349,0.01285,109420.0,109410.0,0.4521306]
[1758921562550,0.01285,109420.0,109410.0,1.2849306]
[1758921563050,0.01285,109420.0,109410.0,0.4521306]
[1758921563249,0.01285,109420.0,109410.0,1.2849306]
[1758921563452,0.01485,109420.0,109410.0,0.4521306]
[1758921563650,0.01485,109420.0,109410.0,1.2849306]
[1758921564450,0.01485,109420.0,109410.0,1.77632574]
[1758921564650,0.01485,109420.0,109410.0,0.94352574]
[1758921564850,0.01485,109420.0,109410.0,1.77624574]
[1758921565854,0.01485,109420.0,109410.0,1.85069471]
[1758921567461,0.01485,109420.0,109410.0,1.01797471]
[1758921567657,0.1283123,109420.0,109410.0,1.2846106]
[1758921567856,0.1283123,109420.0,109410.0,0.4521306]
[1758921567857,0.03699,109420.0,109410.0,0.4521306]
[1758921568058,0.03699,109420.0,109410.0,1.2847306]
[1758921568556,0.03699,109420.0,109410.0,0.4521306]
[1758921568753,0.03699,109420.0,109410.0,1.2855706]
[1758921569261,0.03699,109420.0,109410.0,0.4521306]
[1758921569761,0.03699,109420.0,109410.0,1.2856506]
[1758921569961,0.03699,109420.0,109410.0,0.4521306]
[1758921570358,0.03699,109420.0,109410.0,1.2856106]
[1758921570961,0.03699,109420.0,109410.0,0.4521306]
[1758921571261,0.1283123,109420.0,109410.0,1.2855306]
[1758921571557,0.1283123,109420.0,109410.0,0.4521306]
[1758921571759,0.1283123,109420.0,109410.0,0.0913306]
[1758921571964,0.1283123,109420.0,109410.0,0.9246506]
[1758921572160,0.1271907,109410.0,109400.0,0.4521347]
[1758921572958,0.1271907,109410.0,109400.0,1.2857347]
[1758921573159,0.03586,109410.0,109400.0,1.2857347]
[1758921576057,0.03586,109410.0,109400.0,0.4521347]
[1758921576263,0.1271907,109410.0,109400.0,1.2857347]
[1758921576458,0.1271907,109410.0,109400.0,0.4521347]
[1758921576665,0.1271907,109410.0,109400.0,1.2858147]
[1758921577459,0.5271907,109410.0,109400.0,0.0913347]
[1758921577663,0.5271907,109410.0,109400.0,0.9251347]
[1758921578368,0.5271907,109410.0,109400.0,0.9250947]
[1758921578761,0.76833059,109410.0,109400.0,0.0913347]
[1758921578961,1.12913059,109410.0,109400.0,0.0913347]
[1758921579362,0.126439,109400.0,109390.0,0.71493408]
[1758921579562,0.36757889,109400.0,109390.0,1.18825408]
[1758921579762,0.76757889,109400.0,109390.0,1.18825408]
[1758921580061,0.526439,109400.0,109390.0,1.18825408]
[1758921580365,0.76757889,109400.0,109390.0,1.18825408]
[1758921580665,0.36757889,109400.0,109390.0,1.18825408]
[1758921580866,0.0351,109400.0,109390.0,1.54905408]
[1758921581055,0.0351,109400.0,109390.0,0.71493408]
[1758921581261,0.0351,109400.0,109390.0,1.54897408]
[1758921581756,0.0351,109400.0,109390.0,1.54997408]
[1758921583167,0.1264389,109400.0,109390.0,1.54997408]
[1758921583762,0.1264389,109400.0,109390.0,1.18917408]
[1758921583963,0.1264389,109400.0,109390.0,1.54997408]
[1758921585467,0.0351,109400.0,109390.0,1.54997408]
[1758921586368,0.126439,109400.0,109390.0,1.54997408]
[1758921588971,0.0351,109400.0,109390.0,1.54997408]
[1758921589271,0.126439,109400.0,109390.0,1.54997408]
[1758921591374,0.126439,109400.0,109390.0,0.71593408]
[1758921591674,0.126439,109400.0,109390.0,1.54945408]
[1758921592073,0.126439,109400.0,109390.0,0.71593408]
[1758921592274,0.126439,109400.0,109390.0,1.54945408]
[1758921592872,0.126439,109400.0,109390.0,0.71593408]
[1758921593074,0.76757889,109400.0,109390.0,0.47479419]
[1758921593275,0.526439,109400.0,109390.0,1.54933408]
[1758921593473,0.76757889,109400.0,109390.0,1.54933408]
[1758921598682,0.76757889,109400.0,109390.0,1.18853408]
[1758921598982,0.76757889,109400.0,109390.0,0.35513408]
[1758921599186,0.76757889,109400.0,109390.0,1.18845408]
[1758921600585,0.526439,109400.0,109390.0,0.94731419]
[1758921600985,0.526439,109400.0,109390.0,0.02265309]
[1758921601187,1.20882326,109400.0,109390.0,0.001]
[1758921601382,0.887239,109400.0,109390.0,0.0923474]
[1758921601579,1.20882326,109400.0,109390.0,0.0923474]
[1758921601780,1.20882326,109400.0,109390.0,0.001]
[1758921602286,0.1044274,109390.0,109380.0,0.9244294]
[1758921602480,0.1264474,109390.0,109380.0,0.9244294]
[1758921602888,0.1264474,109390.0,109380.0,0.9248294]
[1758921604087,0.1264474,109390.0,109380.0,0.0913494]
[1758921604290,0.1264474,109390.0,109380.0,0.9246694]
[1758921605186,0.1294474,109390.0,109380.0,0.9246694]
[1758921609393,0.4902474,109390.0,109380.0,0.9246694]
[1758921609891,0.4902474,109390.0,109380.0,0.0913494]
[1758921609892,0.81183166,109390.0,109380.0,0.0913494]
[1758921610890,0.4902474,109390.0,109380.0,0.0913494]
[1758921612085,1.21183166,109390.0,109380.0,0.0913494]
[1758921612285,2.04547166,109390.0,109380.0,0.0913494]
[1758921612891,1.7238874,109390.0,109380.0,0.0913494]
[1758921613095,1.21183166,109390.0,109380.0,0.0913494]
[1758921613293,1.7238074,109390.0,109380.0,0.0913494]
[1758921613696,0.8902474,109390.0,109380.0,0.0913494]
[1758921613995,1.3629674,109390.0,109380.0,0.0913494]
[1758921614697,1.7237674,109390.0,109380.0,0.0913494]
[1758921615197,2.04535166,109390.0,109380.0,0.0913494]
[1758921617297,1.21183166,109390.0,109380.0,0.0913494]
[1758921617499,2.04511166,109390.0,109380.0,0.0913494]
[1758921618200,1.21183166,109390.0,109380.0,0.0913494]
[1758921618398,2.04567166,109390.0,109380.0,0.0913494]
[1758921620200,1.21183166,109390.0,109380.0,0.0913494]
[1758921620401,2.04643166,109390.0,109380.0,0.0913494]
[1758921620604,1.21183166,109390.0,109380.0,0.0913494]
[1758921620804,1.3640074,109390.0,109380.0,0.0913494]
[1758921621897,1.7248074,109390.0,109380.0,0.0913494]
[1758921622097,2.04639166,109390.0,109380.0,0.0913494]
[1758921626505,1.21183166,109390.0,109380.0,0.0913494]
[1758921626806,2.04599166,109390.0,109380.0,0.0913494]
[1758921630804,1.21183166,109390.0,109380.0,0.0913494]
[1758921631206,2.04547166,109390.0,109380.0,0.0913494]
[1758921631808,1.21183166,109390.0,109380.0,0.0913494]
[1758921632307,2.04539166,109390.0,109380.0,0.0913494]
[1758921632509,1.21183166,109390.0,109380.0,0.0913494]
[1758921632809,2.04535166,109390.0,109380.0,0.0913494]
[1758921633507,1.21183166,109390.0,109380.0,0.0913494]
[1758921633709,2.04531166,109390.0,109380.0,0.0913494]
[1758921639412,1.64531166,109390.0,109380.0,0.0913494]
[1758921643608,0.1267962,109380.0,109370.0,0.78291474]
[1758921643912,0.1267962,109380.0,109370.0,1.61591474]
[1758921645415,0.1287962,109380.0,109370.0,1.61591474]
[1758921646115,0.1287962,109380.0,109370.0,1.29433048]
[1758921646312,0.1287962,109380.0,109370.0,1.61591474]
[1758921650614,0.03744,109380.0,109370.0,1.61591474]
[1758921651618,0.1287962,109380.0,109370.0,1.61591474]
[1758921651918,0.1287962,109380.0,109370.0,0.78291474]
[1758921652118,0.1287962,109380.0,109370.0,1.61575474]
[1758921652919,0.1287962,109380.0,109370.0,1.29417048]
[1758921653217,0.1287962,109380.0,109370.0,1.61575474]
[1758921653412,0.1287962,109380.0,109370.0,0.46133048]
[1758921653612,0.1287962,109380.0,109370.0,1.61575474]
[1758921658820,0.1287962,109380.0,109370.0,0.78291474]
[1758921659120,0.1287962,109380.0,109370.0,1.61575474]
[1758921660618,0.03744,109380.0,109370.0,1.53541468]
[1758921662722,0.1287933,109380.0,109370.0,1.29417048]
[1758921662924,0.1287933,109380.0,109370.0,0.70257468]
[1758921663322,0.1287933,109380.0,109370.0,1.53541468]
[1758921663821,0.1287933,109380.0,109370.0,0.70257468]
[1758921664021,0.1287933,109380.0,109370.0,1.5262464]